fUST/lending_fUST_20251021
["ID","MTS","AMOUNT","RATE_DAILY","PERIOD"]
[391935818,1761009040159,-2097.754001,0.00028458,2]
[391935819,1761009040168,-260.0,0.00028465,2]
[391935820,1761009040178,-1500.0,0.00028468,5]
[391935821,1761009040187,-589.82991152,0.00028488,2]
[391935822,1761009040196,-14886.1,0.000286,7]
[391935823,1761009040205,-720.0,0.00028655,30]
[391935824,1761009040214,-150.269,0.00028852,2]
[391935825,1761009040223,-151.499,0.00028852,2]
[391935826,1761009040233,-262.513,0.00028852,2]
[391935827,1761009040242,-294.101,0.00028852,2]
[391935828,1761009040251,-150.07,0.00028852,2]
[391935829,1761009040260,-999.443,0.00028852,2]
[391935830,1761009040269,-632.0,0.00028852,2]
[391935831,1761009040279,-2163.0,0.00028852,2]
[391935832,1761009040289,-389.91180095,0.00028904,2]
[391935833,1761009040298,-553.64373807,0.00028975,2]
[391935834,1761009040308,-264.901307,0.00028993,28]
[391935835,1761009040317,-180.39766,0.00028993,28]
[391935836,1761009040326,-360.0,0.00029013,2]
[391935837,1761009040336,-1947.10716915,0.00029016,5]
[391935838,1761009040345,-632.98819773,0.00029088,2]
[391935839,1761009040354,-160.0,0.00029166,5]
[391935840,1761009040363,-264.901307,0.00029178,2]
[391935841,1761009040372,-180.39766,0.00029178,2]
[391935842,1761009040383,-160.0,0.00029289,2]
[391935843,1761009040392,-151.0,0.0002929,30]
[391935844,1761009040402,-151.782599,0.0002929,30]
[391935845,1761009040411,-190.282126,0.0002929,30]
[391935846,1761009040420,-151.0,0.0002929,30]
[391935847,1761009040429,-190.282126,0.0002929,30]
[391935848,1761009040440,-190.282126,0.0002929,30]
[391935849,1761009040449,-190.282126,0.0002929,30]
[391935850,1761009040459,-222.186692,0.0002929,30]
[391935851,1761009040469,-3112.86,0.000293,2]
[391935852,1761009040478,-16056.4636565,0.00029325,2]
[391935853,1761009040695,-2097.754001,0.00029325,2]
[391935854,1761009040713,-151.0,0.00029335,30]
[391935855,1761009040723,-151.0,0.00029335,30]
[391935856,1761009040732,-151.0,0.00029335,30]
[391935857,1761009040741,-151.0,0.00029335,30]
[391935858,1761009040750,-4204.0,0.00029335,2]
[391935859,1761009040759,-151.0,0.00029374,30]
[391935860,1761009040767,-151.0,0.00029408,30]
[391935861,1761009040776,-4466.07104988,0.00029497,2]
[391935862,1761009040786,-7219.68235062,0.00029497,2]
[391935863,1761009040795,-168.0,0.00029508,2]
[391935864,1761009040805,-574.12855637,0.00029523,2]
[391935865,1761009040814,-460.0,0.00029561,2]
[391935866,1761009040823,-168.0,0.0002966,2]
[391935867,1761009040834,-676.14648394,0.00029688,2]
[391935868,1761009040844,-23736.90873957,0.000297,2]
[391935869,1761009040854,-411.21830985,0.00029717,4]
[391935870,1761009040863,-731.99842578,0.00029717,4]
[391935871,1761009040872,-500.0,0.00029834,11]
[391935872,1761009040881,-500.0,0.00029834,11]
[391935873,1761009040891,-587.0,0.00029865,2]
[391935874,1761009040901,-13491.33538253,0.000299,5]
[391935875,1761009040910,-160.0,0.00029921,6]
[391935876,1761009040919,-160.0,0.00029921,5]
[391935877,1761009040929,-502.42416478,0.00029929,7]
[391935878,1761009040939,-185.151,0.0003,2]
[391935879,1761009040948,-762.0,0.0003,2]
[391935880,1761009040957,-1000.0,0.0003,14]
[391935881,1761009040966,-158.41,0.0003,3]
[391935882,1761009040976,-1001.24081693,0.0003,14]
[391935883,1761009040986,-150.5,0.0003,2]
[391935884,1761009040995,-151.0,0.0003,14]
[391935885,1761009041005,-500.0,0.00030014,7]
[391935886,1761009041015,-845.0,0.00030029,2]
[391935887,1761009041024,-389.91180095,0.00030058,2]
[391935888,1761009041033,-595.37131296,0.00030071,2]
[391935889,1761009041042,-560.0,0.00030108,2]
[391935890,1761009041051,-151.0,0.00030112,30]
[391935891,1761009041060,-151.0,0.00030112,30]
[391935892,1761009041070,-151.0,0.00030112,30]
[391935893,1761009041079,-16056.4636565,0.00030127,2]
[391935894,1761009041089,-4195.508002,0.00030127,2]
[391935895,1761009041098,-151.0,0.00030127,30]
[391935896,1761009041108,-151.0,0.00030127,30]
[391935897,1761009041117,-151.0,0.00030127,30]
[391935898,1761009041126,-151.0,0.00030127,30]
[391935899,1761009041136,-151.0,0.00030127,30]
[391935900,1761009041145,-151.0,0.00030127,30]
[391935901,1761009041155,-151.0,0.00030127,30]
[391935902,1761009041165,-500.0,0.00030137,60]
[391935903,1761009041175,-500.0,0.00030137,60]
[391935904,1761009041184,-500.0,0.00030137,60]
[391935905,1761009041194,-500.0,0.00030137,60]
[391935906,1761009041203,-500.0,0.00030137,60]
[391935907,1761009041213,-500.0,0.00030137,60]
[391935908,1761009041222,-500.0,0.00030137,60]
[391935909,1761009041231,-500.0,0.00030137,60]
[391935910,1761009041241,-500.0,0.00030137,60]
[391935911,1761009041250,-500.0,0.00030137,60]
[391935912,1761009041259,-500.0,0.00030137,60]
[391935913,1761009041268,-500.0,0.00030137,60]
[391935914,1761009041278,-153.899138,0.00030137,60]
[391935915,1761009041287,-10000.0,0.00030137,2]
[391935916,1761009041297,-10000.0,0.00030137,2]
[391935917,1761009041306,-10000.0,0.00030137,2]
[391935918,1761009041315,-10000.0,0.00030137,2]
[391935919,1761009041324,-10000.0,0.00030137,2]
[391935920,1761009041334,-909.0,0.00030137,2]
[391935921,1761009041343,-500.0,0.00030137,2]
[391935922,1761009041352,-500.0,0.00030137,2]
[391935923,1761009041362,-500.0,0.00030137,2]
[391935924,1761009041371,-500.0,0.00030137,2]
[391935925,1761009041380,-500.0,0.00030137,2]
[391935926,1761009041390,-364.54342236,0.00030137,2]
[391935927,1761009041398,-500.0,0.00030137,2]
[391935928,1761009041407,-500.0,0.00030137,2]
[391935929,1761009041416,-500.0,0.00030137,2]
[391935930,1761009041426,-500.0,0.00030137,2]
[391935931,1761009041435,-500.0,0.00030137,2]
[391935932,1761009041445,-151.0,0.00030137,30]
[391935933,1761009041454,-154.08754,0.00030137,30]
[391935934,1761009041464,-154.08754,0.00030137,30]
[391935935,1761009041473,-154.08754,0.00030137,30]
[391935936,1761009041482,-154.08754,0.00030137,30]
[391935937,1761009041492,-151.0,0.00030137,15]
[391935938,1761009041501,-843.0,0.00030146,2]
[391935939,1761009041511,-843.0,0.00030257,2]
[391935940,1761009041520,-719.30477015,0.00030288,2]
[391935941,1761009041529,-1975.411402,0.000304,8]
[391935942,1761009041539,-503.49569902,0.00030411,7]
[391935943,1761009041548,-617.40005154,0.00030619,2]
[391935944,1761009041557,-843.0,0.00030627,7]
[391935945,1761009041567,-660.0,0.00030656,2]
[391935946,1761009041577,-14886.1,0.000307,7]
[391935947,1761009041586,-3112.86,0.000307,2]
[391935948,1761009041595,-151.0,0.000307,30]
[391935949,1761009041605,-151.0,0.000307,30]
[391935950,1761009041615,-843.0,0.00030725,2]
[391935951,1761009041624,-843.0,0.00030764,7]
[391935952,1761009041634,-241.797563,0.0003082,2]
[391935953,1761009041644,-297.53966291,0.00030839,2]
[391935954,1761009041654,-535.57139323,0.00030839,2]
[391935955,1761009041663,-952.12692131,0.00030839,2]
[391935956,1761009041673,-529.64218674,0.00030839,2]
[391935957,1761009041682,-953.35593613,0.00030839,2]
[391935958,1761009041692,-1694.85499756,0.00030839,2]
[391935959,1761009041702,-762.46305636,0.00030888,2]
[391935960,1761009041710,-208.66,0.00030889,2]
[391935961,1761009041719,-152.44,0.0003089,15]
[391935962,1761009041729,-2097.754001,0.0003089,2]
[391935963,1761009041738,-152.44,0.00030899,15]
[391935964,1761009041748,-151.0,0.000309,30]
[391935965,1761009041758,-1000.0,0.000309,8]
[391935966,1761009041767,-500.0,0.0003091,7]
[391935967,1761009041777,-1336.04988357,0.00030912,15]
[391935968,1761009041787,-151.0,0.0003095,14]
[391935969,1761009041795,-152.44,0.00030999,15]
[391935970,1761009041805,-538.67412839,0.00031,120]
[391935971,1761009041814,-160.072098,0.00031,120]
[391935972,1761009041823,-172.08615683,0.00031,120]
[391935973,1761009041834,-168.96757517,0.00031,120]
[391935974,1761009041844,-531.16687484,0.00031,120]
[391935975,1761009041853,-980.94411086,0.00031,120]
[391935976,1761009041862,-461.71857309,0.00031,120]
[391935977,1761009041872,-1188.42521936,0.00031,120]
[391935978,1761009041881,-2002.82486946,0.00031,120]
[391935979,1761009041890,-1712.41221377,0.00031,120]
[391935980,1761009041900,-7568.28424401,0.00031,120]
[391935981,1761009041909,-3165.21,0.00031,2]
[391935982,1761009041918,-160.0,0.00031,120]
[391935983,1761009041927,-190.282126,0.00031,30]
[391935984,1761009041937,-152.322127,0.00031,30]
[391935985,1761009041946,-190.282126,0.00031,30]
[391935986,1761009041955,-190.282126,0.00031,30]
[391935987,1761009041964,-190.282126,0.00031,30]
[391935988,1761009041973,-843.0,0.00031087,2]
[391935989,1761009041982,-152.44,0.00031099,15]
[391935990,1761009041992,-843.0,0.00031103,2]
[391935991,1761009042004,-640.24385345,0.00031167,2]
[391935992,1761009042014,-152.44,0.00031199,15]
[391935993,1761009042023,-168.0,0.00031204,2]
[391935994,1761009042033,-760.0,0.00031204,2]
[391935995,1761009042043,-389.91180095,0.00031212,2]
[391935996,1761009042053,-152.44,0.00031299,15]
[391935997,1761009042062,-264.901307,0.00031346,28]
[391935998,1761009042073,-180.39766,0.00031346,28]
[391935999,1761009042083,-264.901307,0.00031356,2]
[391936000,1761009042092,-180.39766,0.00031356,2]
[391936001,1761009042102,-843.0,0.00031376,7]
[391936002,1761009042112,-152.44,0.00031399,15]
[391936003,1761009042121,-1000.0,0.000314,8]
[391936004,1761009042131,-150.0,0.00031414,2]
[391936005,1761009042141,-150.0,0.00031414,2]
[391936006,1761009042150,-800.0,0.0003143,2]
[391936007,1761009042159,-2097.754001,0.00031445,2]
[391936008,1761009042170,-800.0,0.00031446,2]
[391936009,1761009042180,-800.0,0.00031455,2]
[391936010,1761009042190,-805.62134257,0.00031488,2]
[391936011,1761009042199,-152.44,0.00031499,15]
[391936012,1761009042209,-204.28720656,0.00031502,2]
[391936013,1761009042218,-800.0,0.00031507,2]
[391936014,1761009042227,-800.0,0.00031509,2]
[391936015,1761009042237,-4466.07104988,0.00031509,2]
[391936016,1761009042247,-800.0,0.00031511,2]
[391936017,1761009042257,-800.0,0.00031516,2]
[391936018,1761009042265,-800.0,0.0003152,2]
[391936019,1761009042275,-864.0,0.00031521,30]
[391936020,1761009042285,-800.0,0.00031531,2]
[391936021,1761009042295,-151.0,0.00031531,30]
[391936022,1761009042305,-623.53712938,0.00031545,2]
[391936023,1761009042314,-800.0,0.00031564,2]
[391936024,1761009042323,-800.0,0.0003158,2]
[391936025,1761009042333,-800.0,0.00031581,2]
[391936026,1761009042342,-800.0,0.00031594,2]
[391936027,1761009042351,-800.0,0.00031597,2]
[391936028,1761009042360,-800.0,0.00031599,2]
[391936029,1761009042370,-152.44,0.00031599,15]
[391936030,1761009042379,-2097.754001,0.00031638,2]
[391936031,1761009042389,-800.0,0.00031645,2]
[391936032,1761009042398,-800.0,0.00031646,2]
[391936033,1761009042407,-800.0,0.00031647,2]
[391936034,1761009042417,-16000.9146531,0.00031648,2]
[391936035,1761009042426,-244.7581907,0.00031648,2]
[391936036,1761009042435,-13424.0862698,0.00031648,2]
[391936037,1761009042445,-611.8954768,0.00031648,2]
[391936038,1761009042455,-154.08754,0.00031648,30]
[391936039,1761009042464,-154.08754,0.00031648,30]
[391936040,1761009042474,-154.08754,0.00031648,30]
[391936041,1761009042483,-154.08754,0.00031648,30]
[391936042,1761009042492,-151.0,0.00031648,15]
[391936043,1761009042501,-163.1721272,0.00031648,2]
[391936044,1761009042511,-151.0,0.00031648,30]
[391936045,1761009042521,-151.0,0.00031648,30]
[391936046,1761009042531,-151.0,0.00031648,30]
[391936047,1761009042540,-151.0,0.00031648,30]
[391936048,1761009042550,-800.0,0.00031669,2]
[391936049,1761009042559,-150.0,0.00031673,5]
[391936050,1761009042569,-800.0,0.0003168,2]
[391936051,1761009042579,-152.44,0.00031699,15]
[391936052,1761009042588,-663.93287602,0.00031715,2]
[391936053,1761009042597,-860.0,0.00031752,2]
[391936054,1761009042607,-1800.0,0.00031829,7]
[391936056,1761009042616,-150.0,0.00031852,2]
[391936058,1761009042626,-150.0,0.00031852,2]
[391936060,1761009042634,-150.0,0.00031852,2]
[391936061,1761009042643,-982.0,0.00031852,2]
[391936062,1761009042652,-632.0,0.00031852,2]
[391936063,1761009042661,-2163.0,0.00031852,2]
[391936065,1761009042670,-500.0,0.00031873,5]
[391936067,1761009042680,-2097.754001,0.0003189,2]
[391936068,1761009042689,-24128.9018468,0.000319,30]
[391936071,1761009042975,-23310.85311257,0.000319,30]
[391936072,1761009042984,-538.67412839,0.000319,120]
[391936074,1761009042994,-160.072098,0.000319,120]
[391936075,1761009043003,-172.08615683,0.000319,120]
[391936077,1761009043013,-168.96757517,0.000319,120]
[391936079,1761009043022,-531.16687484,0.000319,120]
[391936081,1761009043031,-461.71857309,0.000319,120]
[391936083,1761009043041,-980.94411086,0.000319,120]
[391936085,1761009043050,-1188.42521936,0.000319,120]
[391936087,1761009043060,-150.0,0.000319,9]
[391936089,1761009043069,-2002.82486946,0.000319,120]
[391936091,1761009043078,-7568.28424401,0.000319,120]
[391936093,1761009043087,-1712.41221377,0.000319,120]
[391936095,1761009043096,-151.0,0.000319,30]
[391936097,1761009043106,-245.012502,0.000319,30]
[391936099,1761009043115,-3112.86,0.000319,2]
[391936101,1761009043124,-1000.0,0.000319,8]
[391936103,1761009043133,-744.84740603,0.000319,14]
[391936105,1761009043143,-150.442674,0.000319,2]
[391936107,1761009043152,-196.84119169,0.000319,14]
[391936109,1761009043161,-168.0,0.0003193,2]
[391936111,1761009043169,-158.02367956,0.00031945,30]
[391936113,1761009043179,-686.0,0.00031951,2]
[391936115,1761009043188,-152.44,0.00031975,15]
[391936117,1761009043197,-151.0,0.0003199,30]
[391936119,1761009043206,-151.0,0.0003199,30]
[391936121,1761009043215,-151.0,0.0003199,30]
[391936123,1761009043224,-151.0,0.0003199,30]
[391936125,1761009043233,-2097.754001,0.0003199,2]
[391936127,1761009043243,-7844.08763176,0.00032,30]
[391936129,1761009043252,-1500.0,0.00032,2]
[391936131,1761009043260,-1500.0,0.00032,2]
[391936133,1761009043269,-1500.0,0.00032,2]
[391936134,1761009043278,-1500.0,0.00032,2]
[391936136,1761009043287,-1500.0,0.00032,2]
[391936138,1761009043296,-1500.0,0.00032,2]
[391936140,1761009043305,-1500.0,0.00032,2]
[391936142,1761009043314,-1500.0,0.00032,2]
[391936144,1761009043323,-1501.83,0.00032,2]
[391936146,1761009043332,-160.0,0.00032,30]
[391936148,1761009043342,-160.0,0.00032,30]
[391936150,1761009043351,-190.282126,0.00032,30]
[391936152,1761009043360,-190.282126,0.00032,30]
[391936154,1761009043369,-190.282126,0.00032,30]
[391936156,1761009043378,-190.282126,0.00032,30]
[391936158,1761009043387,-152.44,0.00032075,15]
[391936160,1761009043397,-848.77962878,0.00032088,2]
[391936162,1761009043406,-250.0,0.00032092,2]
[391936164,1761009043416,-495.0,0.0003211,2]
[391936166,1761009043425,-843.0,0.00032125,2]
[391936168,1761009043434,-152.44,0.00032175,15]
[391936170,1761009043443,-158.02367956,0.00032192,30]
[391936172,1761009043452,-168.0,0.00032209,2]
[391936174,1761009043461,-400.0,0.0003222,5]
[391936176,1761009043470,-250.0,0.00032221,5]
[391936178,1761009043479,-688.49839244,0.00032263,2]
[391936180,1761009043488,-152.44,0.00032275,15]
[391936182,1761009043497,-495.0,0.00032279,2]
[391936184,1761009043507,-14886.1,0.000323,7]
[391936186,1761009043518,-960.0,0.000323,2]
[391936188,1761009043527,-495.0,0.0003231,2]
[391936190,1761009043537,-168.0,0.00032337,2]
[391936192,1761009043546,-823.0,0.00032338,2]
[391936194,1761009043555,-495.0,0.00032347,2]
[391936196,1761009043564,-389.91180095,0.00032367,2]
[391936198,1761009043573,-152.44,0.00032375,15]
[391936200,1761009043582,-600.0,0.00032397,2]
[391936202,1761009043591,-158.02367956,0.00032438,30]
[391936204,1761009043600,-152.44,0.00032475,15]
[391936206,1761009043610,-158.02367953,0.00032548,30]
[391936208,1761009043619,-152.44,0.00032575,15]
[391936210,1761009043628,-246.868,0.00032614,2]
[391936212,1761009043636,-495.0,0.00032616,7]
[391936214,1761009043645,-1800.0,0.00032651,7]
[391936216,1761009043654,-152.44,0.00032675,15]
[391936218,1761009043663,-158.02367956,0.00032685,30]
[391936220,1761009043672,-891.93791498,0.00032688,2]
[391936222,1761009043681,-154.1721486,0.00032694,30]
[391936224,1761009043690,-600.0,0.00032735,2]
[391936226,1761009043699,-378.3000009,0.0003274,5]
[391936228,1761009043708,-500.0,0.0003274,30]
[391936230,1761009043717,-500.0,0.0003274,5]
[391936232,1761009043727,-595.9271143,0.0003274,5]
[391936234,1761009043736,-495.0,0.00032755,2]
[391936236,1761009043746,-350.0,0.00032768,5]
[391936238,1761009043756,-152.44,0.00032775,15]
[391936240,1761009043765,-500.0,0.0003278,30]
[391936242,1761009043774,-713.97283296,0.00032811,2]
[391936244,1761009043783,-1060.0,0.00032848,2]
[391936246,1761009043793,-495.0,0.00032848,2]
[391936248,1761009043802,-495.0,0.00032851,2]
[391936250,1761009043811,-152.44,0.00032875,15]
[391936252,1761009043821,-1000.0,0.00032876,5]
[391936254,1761009043831,-1000.0,0.00032876,5]
[391936256,1761009043844,-1000.0,0.00032876,5]
[391936258,1761009043853,-526.44908795,0.00032876,5]
[391936260,1761009043862,-3154.25,0.00032876,120]
[391936262,1761009043871,-151.0,0.00032877,30]
[391936264,1761009043880,-151.0,0.00032877,30]
[391936266,1761009043889,-151.0,0.00032877,30]
[391936268,1761009043899,-151.0,0.00032877,30]
[391936270,1761009043907,-151.0,0.00032877,30]
[391936272,1761009043917,-151.0,0.00032877,30]
[391936274,1761009043926,-151.0,0.00032877,30]
[391936276,1761009043935,-189.257916,0.00032877,30]
[391936278,1761009043944,-151.0,0.00032877,30]
[391936280,1761009043954,-151.486568,0.00032877,30]
[391936282,1761009043963,-538.67412839,0.000329,120]
[391936284,1761009043972,-172.08615683,0.000329,120]
[391936286,1761009043982,-168.96757517,0.000329,120]
[391936288,1761009043991,-531.16687484,0.000329,120]
[391936290,1761009044001,-461.71857309,0.000329,120]
[391936292,1761009044011,-1188.42521936,0.000329,120]
[391936294,1761009044021,-980.94411086,0.000329,120]
[391936296,1761009044030,-2002.82486946,0.000329,120]
[391936305,1761009044236,-1712.41221377,0.000329,120]
[391936306,1761009044248,-7568.28424401,0.000329,120]
[391936307,1761009044257,-264.901307,0.000329,10]
[391936309,1761009044267,-154.08754,0.000329,30]
[391936311,1761009044276,-154.08754,0.000329,30]
[391936313,1761009044285,-154.08754,0.000329,30]
[391936315,1761009044294,-154.08754,0.000329,30]
[391936317,1761009044304,-180.39766,0.000329,10]
[391936319,1761009044313,-151.0,0.000329,30]
[391936321,1761009044322,-151.0,0.000329,30]
[391936323,1761009044331,-151.0,0.000329,30]
[391936325,1761009044343,-151.0,0.000329,30]
[391936327,1761009044352,-151.0,0.000329,30]
[391936329,1761009044360,-187.75765,0.000329,30]
[391936331,1761009044370,-158.02367956,0.00032904,30]
[391936333,1761009044379,-180.0,0.00032944,2]
[391936335,1761009044388,-503.22156837,0.00032972,7]
[391936337,1761009044397,-152.44,0.00032975,60]
[391936339,1761009044406,-500.0,0.0003298,5]
[391936341,1761009044415,-92623.14614388,0.00032988,14]
[391936343,1761009044427,-4398.46438911,0.00032988,14]
[391936348,1761009044461,-1187.75,0.00027397,2]
[391936350,1761009044470,-6063.09601342,0.00032988,14]
[391936352,1761009044481,-325.76237576,0.00032988,14]
[391936405,1761009044977,-1187.75,0.00027397,2]
[391936407,1761009044986,-1187.75,0.00027397,2]
[391936409,1761009044996,-1187.75,0.00027397,2]
[391936411,1761009045006,-1187.75,0.00027397,2]
[391936413,1761009045015,-1187.75,0.00027397,2]
[391936415,1761009045024,-1187.75,0.00027397,2]
[391936417,1761009045034,-1187.96021411,0.00027397,2]
[391936419,1761009045042,-5195.25179588,0.00032988,14]
[391936422,1761009045054,-19614.68940687,0.00032988,14]
[391936424,1761009045065,-3660.38859975,0.00032988,14]
[391936449,1761009045286,-502.87154355,0.00032988,14]
[391936451,1761009045297,-1722.3917363,0.00032988,14]
[391936503,1761009047665,-372.9242503,0.00032988,14]
[391936504,1761009047677,-13468.1117936,0.00032988,14]
[391936505,1761009047688,-475217.61195158,0.00032988,14]
[391936506,1761009047698,-140899.43,0.00032988,14]
[391936507,1761009047708,-3112.86,0.00033,14]
[391936508,1761009047719,-600.0,0.00033072,2]
[391936509,1761009047728,-152.44,0.00033075,60]
[391936510,1761009047739,-158.02367956,0.00033151,30]
[391936511,1761009047750,-606.935427,0.00033165,2]
[391936512,1761009047759,-152.44,0.00033175,60]
[391936513,1761009047770,-200.0,0.00033233,120]
[391936514,1761009047780,-152.44,0.00033275,60]
[391936515,1761009047791,-935.09620119,0.00033288,2]
[391936516,1761009047800,-450.0,0.00033316,5]
[391936517,1761009047809,-4596.63178671,0.00033321,9]
[391936518,1761009047820,-1019.94870404,0.00033321,9]
[391936519,1761009047831,-1422.35951302,0.00033321,9]
[391936522,1761009142260,160.0,0.00013699,2]
[391936523,1761009142588,260.0,0.00014247,2]
[391936524,1761009142905,360.0,0.00014795,2]
[391936525,1761009143230,460.0,0.00015342,2]
[391936526,1761009143573,560.0,0.0001589,2]
[391936527,1761009143910,660.0,0.00016438,2]
[391936528,1761009144276,760.0,0.00016986,2]
[391936529,1761009144747,860.0,0.00017534,2]
[391936530,1761009144918,960.0,0.00018082,2]
[391936531,1761009145241,1060.0,0.0001863,2]
[391936532,1761009145571,1160.0,0.00019178,2]
[391936533,1761009145920,1260.0,0.00019726,2]
[391936534,1761009146244,1360.0,0.00020274,2]
[391936535,1761009146617,120.01,0.00020822,2]
[391936536,1761009146638,1339.99,0.00020822,2]
[391936537,1761009146903,1560.0,0.0002137,2]
[391936538,1761009147222,1660.0,0.00021918,2]
[391936539,1761009147578,1760.0,0.00022466,2]
[391936540,1761009147895,1860.0,0.00023014,2]
[391936541,1761009148234,1960.0,0.00023562,2]
[391936551,1761009445995,1200.01,0.00024075,2]
[391936552,1761009446017,8799.99,0.00024075,2]
[391936553,1761009453715,1200.02,0.00024075,2]
[391936554,1761009453738,8799.98,0.00024075,2]
[391936555,1761009460972,1200.03,0.00024075,2]
[391936556,1761009460993,8799.97,0.00024075,2]
[391936557,1761009463822,1200.04,0.00024075,2]
[391936558,1761009463846,3799.96,0.00024075,2]
[391936559,1761009468111,6200.05,0.00024075,2]
[391936560,1761009468133,3799.95,0.00024075,2]
[391936561,1761009472311,5000.0,0.00024075,2]
[391936562,1761009475465,5000.01,0.00024075,2]
[391936563,1761009475486,4999.99,0.00024075,2]
[391936564,1761009480975,4984.58769996,0.00024075,2]
[391936565,1761009482568,15.43230004,0.00024075,2]
[391936566,1761009482590,9984.56769996,0.00024075,2]
[391936567,1761009488385,15.44230004,0.0002394,10]
[391936568,1761009488406,274.37769996,0.0002394,10]
[391936569,1761009488865,5000.0,0.00024075,2]
[391936570,1761009494864,150.0,0.00021953,2]
[391936571,1761009495282,169.72,0.00023949,2]
[391936572,1761009495352,1313.85,0.00024075,2]
[391936573,1761009499900,150.0,0.00012942,30]
[391936574,1761009500386,150.0,0.00014119,30]
[391936575,1761009500802,150.0,0.00015295,30]
[391936576,1761009501221,150.0,0.00016472,30]
[391936577,1761009501635,181.84,0.00017648,30]
[391936578,1761009502120,218.21,0.00018825,30]
[391936579,1761009502499,254.57,0.00020002,30]
[391936580,1761009502977,290.94,0.00021178,30]
[391936581,1761009503384,327.31,0.00022355,30]
[391936582,1761009512195,1219.19230004,0.00024075,2]
[391936583,1761009512224,3780.80769996,0.00024075,2]
[391936584,1761009535063,4727.93448804,0.00024075,2]
[391936585,1761009572018,150.0,0.00021986,2]
[391936586,1761009572475,150.0,0.00023985,2]
[391936587,1761009576530,150.0,0.00016094,30]
[391936588,1761009576939,150.0,0.00017557,30]
[391936589,1761009577374,150.0,0.0001902,30]
[391936590,1761009578347,150.0,0.00020483,30]
[391936591,1761009578800,150.0,0.00021946,30]
[391936592,1761009579248,170.99,0.00023409,30]
[391936594,1761009607636,500.0,0.00023862,10]
[391936595,1761009609863,451.0,0.00023862,10]
[391936597,1761009620871,3100.08551196,0.00021712,2]
[391936598,1761009620897,656.58955156,0.00021712,2]
[391936600,1761009650266,150.0,0.00022309,2]
[391936601,1761009655138,150.0,0.00013408,30]
[391936602,1761009655391,150.0,0.00014627,30]
[391936603,1761009655501,150.0,0.00015846,30]
[391936604,1761009655947,150.0,0.00017065,30]
[391936605,1761009656061,-152.12,0.00024075,2]
[391936606,1761009656364,51.5884365,0.00018283,30]
[391936607,1761009656389,98.4115635,0.00018283,30]
[391936608,1761009656853,150.0,0.00019502,30]
[391936609,1761009657282,152.87,0.00020721,30]
[391936611,1761009725219,150.0,0.00022339,2]
[391936612,1761009730896,150.0,0.00016525,30]
[391936613,1761009731319,150.0,0.00018027,30]
[391936614,1761009731856,150.0,0.00019529,30]
[391936615,1761009799468,150.0,0.00022335,2]
[391936616,1761009802865,150.0,0.00016588,30]
[391936617,1761009803349,150.0,0.00018096,30]
[391936618,1761009870972,150.0,0.00022326,2]
[391936621,1761009941235,150.0,0.00022347,2]
[391936624,1761009963534,621.988711,0.00013699,2]